[Event "45th FIDE Olympiad 2024"]
[Site "Budapest"]
[Date "2024.09.11"]
[Round "1.178"]
[White "Siddharth, Jagadeesh"]
[Black "Ayyad, Maher"]
[Result "1-0"]
[ECO "B40"]
[WhiteElo "2514"]
[BlackElo "1980"]
[Annotator "TA"]
[PlyCount "55"]
[EventDate "2024.09.05"]
[EventType "team-tourn"]
[EventCountry "HUN"]
[SourceTitle "playchess.com"]
[Source "ChessBase"]
[SourceQuality "1"]
[WhiteTeam "Singapore"]
[BlackTeam "Bahrain"]
[WhiteTeamCountry "SIN"]
[BlackTeamCountry "BHN"]
[TimeControl "40/5400+30:1800+30"]

{[%evp 11,55,6,7,0,-19,3,7,0,25,0,0,0,45,48,52,37,89,81,132,109,114,118,99,111,164,119,141,110,118,127,129,137,134,129,147,163,260,272,496,496,496,496,785,758,758,644]} 1. e4 c5 2. Nf3 e6 3. d4 cxd4 4. Nxd4 Nf6 5. Bd3 Nc6 6. Nxc6 bxc6 7. Bf4 d5 8. Nd2 Be7 9. O-O {The position is equal.} O-O 10. e5 Nd7 11. Re1 f5 12. exf6 Nxf6 {[%cal Of6e4]} 13. Be5 Qe8 ({Black should play} 13... Bc5 $14) 14. c4 $16 Qf7 (14... Nd7 $142) 15. Qc2 g6 16. Nf3 Nd7 17. Rac1 Nc5 (17... Bb7 $16) 18. cxd5 cxd5 19. Bd4 Nxd3 20. Qxd3 Bd6 {Prevents Rc7.} 21. h4 {White has more active pieces.} Qf5 22. Qb5 {Qc6 would now be deadly.} Bf4 23. Rc3 {And now g3 would win.} Rb8 {[#]} (23... Qg4 {was worth a try.} 24. Qc6 Rb8) 24. Qc5 $1 $18 {aiming for g3.} Rf7 $2 (24... Bd7 {was necessary.} 25. Ne5 (25. Qxa7 Rbd8 $18) 25... Bxe5) 25. Ne5 {White is clearly winning.} Bxe5 26. Bxe5 ({Not} 26. Rxe5 Qg4 27. Rg5 Qxh4 $18) 26... Rb5 {Black is weak on the dark squares} (26... Rxb2 $142 27. Qxc8+ Rf8) 27. Qxc8+ Rf8 28. Qd7 {[%csl LRa7,LRb5] Weighted Error Value: White=0.07 (flawless) /Black=0.42.  Mistake:       	---       	Black=6      Inaccurate:     	---       	Black=1      OK:         	White=8     	Black=7      Best:        	White=1     	---        Strong:       	White=1     	---} 1-0

[Event "45th FIDE Olympiad 2024"]
[Site "Budapest"]
[Date "2024.09.11"]
[Round "1.179"]
[White "Monther, Alfardan"]
[Black "Wong, Zhenyong Jayden"]
[Result "0-1"]
[ECO "B22"]
[WhiteElo "1834"]
[BlackElo "2397"]
[Annotator "TA"]
[PlyCount "106"]
[EventDate "2024.09.05"]
[EventType "team-tourn"]
[EventCountry "HUN"]
[SourceTitle "playchess.com"]
[Source "ChessBase"]
[SourceQuality "1"]
[WhiteTeam "Bahrain"]
[BlackTeam "Singapore"]
[WhiteTeamCountry "BHN"]
[BlackTeamCountry "SIN"]
[TimeControl "40/5400+30:1800+30"]

{[%evp 12,106,6,2,3,12,15,14,20,34,39,27,70,65,65,0,0,0,0,0,0,0,0,-24,-37,-119,-36,-31,0,0,7,19,0,0,0,0,0,0,0,0,0,0,0,0,0,0,0,-18,-26,-47,-54,-58,-59,-56,-26,-118,-103,-114,-106,-132,-134,-256,-258,-256,-256,-302,-326,-286,-222,-239,-234,-258,-11,-11,0,-279,-269,-360,-360,-360,-360,-360,-360,-360,-360,-353,-327,-1329,-1207,-1839,-304,-1161,-879,-29960,-29962,-4634,-4634]} 1. e4 c5 2. Nf3 e6 3. c3 d5 4. exd5 Qxd5 5. d4 Nf6 6. Na3 Nc6 7. Be3 {next Nb5 is good for White.} cxd4 {[#]} 8. Nb5 $1 Qd7 {Dodges Nc7+} (8... Qd8 9. Nbxd4) 9. Nbxd4 a6 {The position is equal.} 10. Bd3 Nd5 11. O-O Be7 12. Nxc6 bxc6 13. Ne5 ({Better is} 13. Bd4 $14 O-O 14. Be5) 13... Qc7 $1 $11 14. Qh5 {[%csl LRf7,LRh7]} g6 15. Nxg6 fxg6 16. Bxg6+ Kd8 $1 17. Rad1 {aiming for c4.} (17. Bxh7 $2 Bf6 18. Rfd1 Rxh7 $19 (18... Qxh7 $2 19. Qxh7 Rxh7 20. c4 $19)) 17... Bd7 18. c4 {[#]} (18. Bxh7 $2 Nf6 19. Qg5 Nxh7 $19 (19... Rxh7 $2 20. Bf4 $19)) (18. Bd2 $15) 18... Nf6 (18... hxg6 $2 19. Qxh8+ Be8 20. cxd5 $18) (18... Nf4 $1 $17 {[%cal Rf4h5]} 19. Bxf4 (19. Rxd7+ Kxd7 20. Qd1+ Kc8 $17) 19... Qxf4 20. Qa5+ Kc8) 19. Qh3 $15 Kc8 (19... Rf8 $5 20. Bb1 Kc8 $15) 20. Bf7 $1 Qe5 {[%cal Oh8f8]} 21. Bd4 Qf5 22. Qxf5 exf5 23. Rfe1 {[%cal Bf1e1,Be1e6,Be6c6][%mdl 32]} Bd8 24. Be6 Bxe6 25. Rxe6 Rf8 26. Rxc6+ Kb7 27. Re6 Rc8 28. c5 Ne4 29. b4 Rc6 30. Rxc6 Kxc6 31. f3 Ng5 32. a4 Bc7 {Threatens to win with ...Rd8.} 33. h4 (33. Re1 $1 $11 {keeps the balance.}) 33... Ne6 $17 34. Bf2 Rb8 35. Be1 Nf4 {Black is more active.} 36. b5+ (36. g4 $17) 36... axb5 $19 (36... Kxc5 37. Rc1+ Kb6 38. Bf2+ (38. a5+ Kb7 $11) 38... Kb7 39. bxa6+ Kc8 40. Re1 $14) 37. axb5+ Rxb5 {[%cal Ob5b2]} ({But not} 37... Kxc5 38. Rc1+ Kb6 (38... Kxb5 $2 39. Rxc7 Rg8 40. g3 $16) 39. Rxc7 Ne2+ (39... Kxc7 40. Bg3 $17) 40. Kf2 Kxc7 41. Kxe2 Rxb5 42. Bd2 $19) 38. Bf2 Rb2 39. Kf1 Ne6 {[%cal Oh7h5]} 40. g4 f4 41. Re1 Kd5 (41... Nxc5 $19 {[%cal Ob2f2] Hoping for ...Rxf2+!} 42. Bxc5 Kxc5) 42. Rd1+ $11 Kc6 $2 {[%mdl 8192]} (42... Kc4 $11) 43. Re1 $1 $19 Nxc5 44. Bxc5 Kxc5 {[%mdl 4096] Endgame. KRB-KR} 45. Re7 Kc6 {White must now prevent ...Bb6.} 46. Rxh7 Bb6 {...Rf2+ is the strong threat.} 47. Rf7 Rf2+ 48. Ke1 {And now Rf6+ would win.} Rxf3 {...Kd5 would now be deadly.} 49. h5 $2 {[#]} (49. Rf5 Be3 50. Ke2) 49... Kd5 $1 50. h6 Re3+ $2 (50... Ke4 {( -> ...Kd3)} 51. Kd2 Rf2+ 52. Kc3 Bd4+ 53. Kb3 Rb2+ 54. Kc4 Rc2+ 55. Kb3 Rc3+ 56. Kb4 Rg3 57. Re7+ Kd3) 51. Kf1 $2 (51. Kd2 Ke4 52. g5) 51... Ke4 52. Re7+ Kf3 53. h7 Bd4 {Weighted Error Value: White=0.58/Black=0.25 (precise) .  Missed win:     	---       	Black=1      Mistake:       	White=5     	Black=2      Inaccurate:     	White=3     	Black=3      OK:         	White=13    	Black=14     Best:        	White=3     	Black=7      Strong:       	White=3     	Black=3} (53... Rxe7 $2 {too greedy.} 54. h8=Q $18 (54. h8=B $2 {leads to mate.} Bf2 55. Bc3 Rh7 56. g5 Rh1#)) 0-1

[Event "45th FIDE Olympiad 2024"]
[Site "Budapest"]
[Date "2024.09.11"]
[Round "1.180"]
[White "Chia, Yu Zhe Ashton"]
[Black "Mosa, Hamad"]
[Result "1-0"]
[ECO "C13"]
[WhiteElo "2224"]
[BlackElo "1721"]
[Annotator "NA"]
[PlyCount "85"]
[EventDate "2024.09.05"]
[EventType "team-tourn"]
[EventCountry "HUN"]
[SourceTitle "playchess.com"]
[Source "ChessBase"]
[SourceQuality "1"]
[WhiteTeam "Singapore"]
[BlackTeam "Bahrain"]
[WhiteTeamCountry "SIN"]
[BlackTeamCountry "BHN"]
[TimeControl "40/5400+30:1800+30"]

1. e4 e6 2. d4 d5 3. Nc3 Nf6 4. Bg5 dxe4 5. Nxe4 Be7 6. Bxf6 Bxf6 7. Nf3 Be7 8. Bd3 Bd7 9. Qe2 Nc6 10. O-O-O Nb4 11. Bc4 c6 12. Bb3 b5 13. c3 Nd5 14. Ne5 Nf6 15. Nc5 Bxc5 16. dxc5 Qe7 17. Rd6 a5 18. Rhd1 a4 19. Bc2 a3 20. Nxd7 axb2+ 21. Kb1 Nd5 22. R1xd5 cxd5 23. Qxb5 Rd8 24. Nb8+ Kf8 25. Nc6 Re8 26. Nxe7 Kxe7 27. Qb7+ Kf6 28. Rd7 Rhf8 29. Qc7 g6 30. Qf4+ Kg7 31. Qe5+ Kg8 32. c6 Rb8 33. Qxb8 Rxb8 34. c7 Rf8 35. Rd8 Kg7 36. Rxf8 Kxf8 37. a4 Ke7 38. c8=Q Kf6 39. a5 Kg7 40. a6 Kf6 41. a7 Kg7 42. a8=Q Kf6 43. Qh8+ 1-0

[Event "45th FIDE Olympiad 2024"]
[Site "Budapest"]
[Date "2024.09.11"]
[Round "1.181"]
[White "Kjartansson, Gudmundur"]
[Black "Mompel Ferruz, Xavier"]
[Result "0-1"]
[ECO "A13"]
[WhiteElo "2478"]
[BlackElo "2273"]
[Annotator "TA"]
[PlyCount "64"]
[EventDate "2024.09.05"]
[EventType "team-tourn"]
[EventCountry "HUN"]
[SourceTitle "playchess.com"]
[Source "ChessBase"]
[SourceQuality "1"]
[WhiteTeam "Iceland"]
[BlackTeam "Equatorial Guinea"]
[WhiteTeamCountry "ISL"]
[TimeControl "40/5400+30:1800+30"]

{[%evp 14,64,17,15,22,20,20,7,11,0,0,0,20,0,0,0,0,0,10,-31,0,0,0,0,0,0,0,0,0,0,0,0,0,-383,-383,-372,-358,-602,-530,-602,-595,-735,-728,-790,-771,-741,-645,-657,-658,-1118,-1110,-1061,-1069]} 1. Nf3 d5 2. g3 Nf6 3. Bg2 c5 4. O-O e6 5. c4 d4 6. e3 Nc6 7. exd4 cxd4 8. d3 Bd6 9. Bg5 h6 10. Bxf6 Qxf6 {The position is equal.} 11. Nbd2 {[%cal Bb1d2,Bd2b3,Bb3c5][%mdl 32]} Qe7 12. Re1 O-O 13. a3 a5 14. Nb3 Qf6 ({Of course not} 14... e5 $6 15. Nfxd4 Nxd4 16. Nxd4 $16) 15. Nfd2 Qd8 16. Ne4 Bc7 17. Nbc5 b6 18. Nf6+ Qxf6 19. Bxc6 Ra7 20. Ne4 Qe7 21. Qa4 Bd6 22. Nxd6 Qxd6 23. b4 $2 {[%mdl 8192] [#]} (23. Rab1 $11) 23... axb4 $1 $19 24. Qxa7 Qxc6 25. axb4 $2 (25. Qe7 Bb7 26. Re4 (26. Qxb4 $2 Qh1#)) 25... Bb7 {Black is clearly winning.} 26. Re4 {[%cal Ob4b5] Black must now prevent b5!} Ra8 27. Qxa8+ Bxa8 28. b5 Qb7 29. f3 Kh7 {Hoping for ...f5.} 30. Rf1 Qe7 31. Re2 Qa3 {Prevents Ra2} 32. Rd2 {[#]} Bxf3 $1 {[%mdl 512] Weighted Error Value: White=0.71/Black=0.07 (flawless) .  Loses game:     	White=1     	---        Mistake:       	White=1     	---        Inaccurate:     	White=1     	Black=1      OK:         	White=6     	Black=8      Best:        	White=2     	Black=2      Strong:       	---       	Black=1} 0-1

[Event "45th FIDE Olympiad 2024"]
[Site "Budapest"]
[Date "2024.09.11"]
[Round "1.182"]
[White "Oscar, Naranjo Gonzalez"]
[Black "Stefansson, Hannes"]
[Result "0-1"]
[ECO "B23"]
[WhiteElo "1861"]
[BlackElo "2471"]
[Annotator "TA"]
[PlyCount "90"]
[EventDate "2024.09.05"]
[EventType "team-tourn"]
[EventCountry "HUN"]
[SourceTitle "playchess.com"]
[Source "ChessBase"]
[SourceQuality "1"]
[WhiteTeam "Equatorial Guinea"]
[BlackTeam "Iceland"]
[BlackTeamCountry "ISL"]
[TimeControl "40/5400+30:1800+30"]

{[%evp 16,90,-21,-47,-41,-32,-31,-33,-34,-50,-67,-65,-62,-78,-16,-56,-52,-53,-40,-56,-18,-75,-77,-111,-66,-72,-36,-54,-47,-43,-49,-60,-65,-84,44,-72,-83,-95,-63,-59,-55,-56,-54,-58,-58,-56,-52,-77,-67,-131,-130,-125,-131,-271,-267,-379,-393,-373,-360,-377,-383,-629,-596,-810,-794,-777,-415,-801,-787,-857,-836,-955,-872,-1719,-1571,-4133,-2484]} 1. e4 c5 2. Nc3 Nc6 3. f4 g6 4. Nf3 Bg7 5. Bc4 e6 6. O-O Nge7 7. a3 O-O 8. d3 d5 9. Ba2 Nd4 10. Nxd4 cxd4 11. Ne2 Bd7 {Black is slightly better.} 12. Bd2 dxe4 13. dxe4 Qb6 14. Kh1 Rfc8 (14... Qxb2 $6 15. Bb4 Ba4 16. Bxe7 $14) ({Better is} 14... Bb5 $17 15. Re1 Rfd8) 15. Rb1 Ba4 16. Bb3 $1 Bxb3 17. cxb3 a5 18. Rc1 (18. Be1 $11 {remains equal.}) 18... Qb5 $17 19. Rf3 Rc6 20. Rxc6 Qxc6 21. e5 Nf5 22. Qc1 Qd7 23. Qb1 Rc8 24. Qd3 {[%cal Oe2g3]} Qc6 (24... g5 $17 25. Bxa5 gxf4) 25. h3 (25. Nxd4 $14 {is the one way to stay ahead.} Nxd4 26. Qxd4) 25... Qd5 26. Ng3 f6 {Black is more active.} 27. Nxf5 exf5 (27... gxf5 {simplifies} 28. exf6 Bxf6 29. Rg3+ Kh8) 28. e6 Bf8 $1 (28... Qxe6 $6 29. Qxd4 Bf8 30. Bxa5 $16) 29. Re3 {[#] Prevents Qe4. Threatens to win with e7.} Be7 30. Re1 Kf8 31. Kh2 Rc6 {[%cal Oe7d6]} 32. b4 ({White should try} 32. h4 $15) 32... axb4 (32... Rxe6 $6 33. Rxe6 Qxe6 34. Qxd4 $11) 33. axb4 Qc4 {Prevents Bc3.} (33... Rxe6 34. Rxe6 Qxe6 35. Qxd4 $15) 34. Qb1 {Loses the game.} (34. Qa3 $17 Ra6 (34... Rxe6 35. Qa8+ Kg7 36. Rxe6 $11) 35. Qf3) 34... Qc2 $19 ({Don't do} 34... Bxb4 35. Bxb4+ Qxb4 36. Qa2 $19) (34... Rxe6 35. Rxe6 Qxe6 36. Qd3 $19) 35. Qxc2 (35. b5 $142 Qxb1 36. Rxb1) 35... Rxc2 {[%mdl 4096] Endgame. KRB-KRB} 36. Rd1 Bd6 {[%cal Oc2d2] [#] Hoping for ...Rxd2!} 37. Kg1 Rxb2 38. Be1 $2 (38. Kf1) 38... Bxf4 39. Kf1 Be3 40. Ra1 d3 41. Rd1 (41. e7+ $142 Kxe7 42. Ra3) 41... d2 {Black is clearly winning.} 42. Bg3 f4 (42... Rxb4 $2 {too greedy.} 43. Bd6+ Ke8 44. Bxb4 $18) 43. Ke2 Rxb4 44. Bh2 Rc4 45. g3 g5 {Weighted Error Value: White=0.82/Black=0.22 (precise) .  Mistake:       	White=6     	Black=2      Inaccurate:     	White=3     	Black=4      OK:         	White=12    	Black=15     Best:        	---       	Black=1      Strong:       	White=1     	Black=1} 0-1

[Event "45th FIDE Olympiad 2024"]
[Site "Budapest"]
[Date "2024.09.11"]
[Round "1.183"]
[White "Heimisson, Hilmir Freyr"]
[Black "Angel, Estanislao Gatjens C"]
[Result "1-0"]
[ECO "E69"]
[WhiteElo "2391"]
[BlackElo "1849"]
[Annotator "ChessBase"]
[PlyCount "87"]
[EventDate "2024.09.05"]
[EventType "team-tourn"]
[EventCountry "HUN"]
[SourceTitle "playchess.com"]
[Source "ChessBase"]
[SourceQuality "1"]
[WhiteTeam "Iceland"]
[BlackTeam "Equatorial Guinea"]
[WhiteTeamCountry "ISL"]
[TimeControl "40/5400+30:1800+30"]

1. c4 Nf6 2. Nc3 g6 3. g3 Bg7 4. Bg2 d6 5. d4 c6 6. Nf3 O-O 7. O-O Nbd7 8. e4 e5 9. h3 h6 10. Be3 Re8 11. Re1 Qc7 12. Qd2 Kh7 13. Rad1 a6 14. Qc2 Nf8 15. b4 Be6 16. d5 cxd5 17. cxd5 Bd7 18. Rc1 Rec8 19. a4 b6 20. Nd2 b5 21. a5 Be8 22. f3 h5 23. Qd3 Bh6 24. f4 Qe7 25. Nf3 N8d7 26. Ng5+ Kg7 27. f5 Nh7 28. Nxh7 Kxh7 29. fxg6+ fxg6 30. Bxh6 Kxh6 31. Nb1 Nf6 32. Qe3+ Kg7 33. Nd2 Qd8 34. Nf3 Bd7 35. Nh4 Nh7 36. Rb1 Rc4 37. Rf1 Qc7 38. Rf7+ Kxf7 39. Qh6 Nf8 40. Rf1+ Bf5 41. Nxg6 Nxg6 42. Rxf5+ Kg8 43. Qxg6+ Qg7 44. Qe6+ 1-0

[Event "45th FIDE Olympiad 2024"]
[Site "Budapest"]
[Date "2024.09.11"]
[Round "1.184"]
[White "Pedro, Manuel Envo Engonga "]
[Black "Gretarsson, Helgi Ass"]
[Result "0-1"]
[ECO "B02"]
[WhiteElo "1702"]
[BlackElo "2450"]
[Annotator "TA"]
[PlyCount "70"]
[EventDate "2024.09.05"]
[EventType "team-tourn"]
[EventCountry "HUN"]
[SourceTitle "playchess.com"]
[Source "ChessBase"]
[SourceQuality "1"]
[WhiteTeam "Equatorial Guinea"]
[BlackTeam "Iceland"]
[BlackTeamCountry "ISL"]
[TimeControl "40/5400+30:1800+30"]

{[%evp 9,70,-46,-26,-43,-30,-94,-29,-38,-43,-152,-147,-143,-92,-116,-122,-291,-205,-295,-308,-305,-240,-241,-231,-226,-227,-229,-219,-259,-219,-266,-272,-275,-245,-242,-216,-229,-214,-439,-426,-445,-450,-491,-460,-601,-601,-724,-705,-734,-731,-847,-851,-932,-926,-1343,-1281,-1408,-1358,-29986,-29987,-29988,-29989,-29992,-29993]} 1. e4 Nf6 2. Bc4 Nxe4 3. Bxf7+ Kxf7 4. Qh5+ Kg8 5. Qd5+ e6 6. Qxe4 d5 7. Qe2 (7. Qe3 $1 $11) 7... c5 (7... Nc6 $17 8. d3 e5) 8. Nf3 {Black has an edge.} Nc6 {[%cal Oe6e5]} 9. Nc3 {[#]} (9. d3 $15) 9... e5 $1 $17 {[%mdl 512]} 10. h3 {[%cal Oe1g1] Prevents Bg4} (10. d3 Bg4) 10... Nd4 ({Better is} 10... e4 11. Nh2 (11. Nxe4 $2 Nb4 $19) 11... Qg5) 11. Nxd4 exd4 12. Ne4 {This costs White the game.} d3 ({Inferior is} 12... dxe4 13. Qc4+) 13. Qxd3 (13. cxd3 {was the only defense.} dxe4 14. dxe4) 13... Bf5 $19 14. f3 Qd7 {[%cal Oc5c4]} ({Worse is} 14... dxe4 15. Qc4+) (14... Qh4+ 15. Kd1 Rd8 (15... dxe4 16. Qd5+) 16. Qf1 $11) 15. c4 dxe4 16. Qxd7 Bxd7 17. fxe4 Bd6 18. Rf1 Rf8 19. d3 Rxf1+ 20. Kxf1 Kf7 21. Be3 Rc8 22. Ke2 Rc6 23. b4 $2 (23. Rf1+ {is a better defense.} Ke8 24. g4) 23... cxb4 {[%cal Ob7b5]} 24. Bxa7 {[#]} b5 $1 25. cxb5 (25. c5 Bxc5) 25... Rc2+ 26. Kf3 Bxb5 27. Bd4 Bxd3 28. e5 Bf8 29. g4 Ke6 30. Ke3 Bc4 31. a4 bxa3 32. Rb1 Kd5 {Hoping for ...Re2+.} 33. Rb8 Re2+ {Black mates.} 34. Kf4 Kxd4 35. Rxf8 Rf2+ {Weighted Error Value: White=0.89/Black=0.13 (very precise) .  Loses game:     	White=1     	---        Mistake:       	White=4     	Black=2      Inaccurate:     	White=1     	---        OK:         	White=5     	Black=7      Best:        	White=1     	Black=2      Brilliant:      	---       	Black=1} 0-1

[Event "45th FIDE Olympiad 2024"]
[Site "Budapest"]
[Date "2024.09.11"]
[Round "1.185"]
[White "Morazo, John Ranel"]
[Black "Henriquez Villagra, Cristobal"]
[Result "0-1"]
[ECO "A13"]
[WhiteElo "2200"]
[BlackElo "2604"]
[Annotator "TA"]
[PlyCount "44"]
[EventDate "2024.09.05"]
[EventType "team-tourn"]
[EventCountry "HUN"]
[SourceTitle "playchess.com"]
[Source "ChessBase"]
[SourceQuality "1"]
[WhiteTeam "Palau"]
[BlackTeam "Chile"]
[WhiteTeamCountry "PAL"]
[BlackTeamCountry "CHI"]
[TimeControl "40/5400+30:1800+30"]

{[%evp 9,44,10,22,12,8,-18,-28,-33,-33,-21,-27,-56,-62,-58,-40,-56,-55,-54,-41,-50,-52,-50,-58,-156,-148,-231,-206,-443,-395,-435,-450,-549,-558,-1002,-1020,-1163,-1018]} 1. Nf3 d5 2. c4 e6 3. g3 Nf6 4. Bg2 d4 5. d3 Bb4+ 6. Nbd2 {With the idea Qa4+.} a5 7. O-O Nc6 8. a3 {Black has an edge.} Be7 9. Rb1 O-O 10. Ne4 Nxe4 11. dxe4 e5 12. b4 axb4 13. axb4 Bxb4 {Hoping for ...Qd6.} 14. Nxe5 $1 Nxe5 15. Rxb4 c5 16. Rb5 ({White should try} 16. Rb1 $1 $15) 16... b6 $1 $36 {[%cal Oa8a1][%mdl 2048] Black is really pushing. Black is more active.} ({Don't play} 16... Nxc4 17. Rxc5 Be6 18. Qc2 $11) 17. Qb3 (17. Rb1 $17) 17... Be6 18. Rxb6 $2 (18. Qb1) 18... Bxc4 $19 ({Weaker is} 18... Nxc4 19. Rxe6 Na5 20. Qb6 fxe6 21. Qxe6+ Kh8 22. e5 $11) 19. Qb2 {[#]} Bxe2 $1 {[%mdl 512] Black is clearly winning.} 20. Bg5 (20. Bf4 Bxf1) 20... f6 21. Re6 Bxf1 22. Kxf1 Qa5 {White got outplayed after the opening.   Weighted Error Value: White=1.12/Black=0.02 (flawless) .  Mistake:       	White=3     	---        Inaccurate:     	White=3     	---        OK:         	White=3     	Black=8      Best:        	---       	Black=2      Strong:       	White=1     	Black=1} 0-1

[Event "45th FIDE Olympiad 2024"]
[Site "Budapest"]
[Date "2024.09.11"]
[Round "1.186"]
[White "Salinas Herrera, Pablo"]
[Black "Salvadora, Angelo"]
[Result "1-0"]
[ECO "D02"]
[WhiteElo "2479"]
[BlackElo "1812"]
[Annotator "TA"]
[PlyCount "83"]
[EventDate "2024.09.05"]
[EventType "team-tourn"]
[EventCountry "HUN"]
[SourceTitle "playchess.com"]
[Source "ChessBase"]
[SourceQuality "1"]
[WhiteTeam "Chile"]
[BlackTeam "Palau"]
[WhiteTeamCountry "CHI"]
[BlackTeamCountry "PAL"]
[TimeControl "40/5400+30:1800+30"]

{[%evp 9,83,3,21,24,41,39,40,32,43,45,97,82,80,74,91,80,87,62,111,102,113,104,166,100,140,93,116,71,70,59,181,27,141,121,188,181,370,390,364,386,369,250,251,252,298,306,518,525,556,549,535,535,568,567,616,637,841,810,812,805,848,844,1225,1247,3593,2748,1832,1395,2364,2339,1384,1093,29979,29980,29973,29974]} 1. d4 e6 2. Nf3 d5 3. Bf4 Bd6 4. e3 Bxf4 5. exf4 Nc6 6. c3 a6 7. Bd3 h6 8. h4 {White is slightly better.} Nf6 9. Nbd2 Nh5 (9... Ne7 $14) 10. g3 $16 Nf6 11. h5 Bd7 12. Qe2 Qe7 13. Kf1 Nh7 (13... Na7 $14) 14. Kg2 O-O 15. Rae1 {White is more active.} Rae8 (15... Nf6 $16 {was called for.}) 16. Nh4 (16. Bc2 $18) 16... Nf6 {[#]} 17. Bb1 (17. g4 $142 $1) 17... Na5 18. Qd3 Bb5 19. Qc2 {aiming for Nhf3.} Nc4 (19... c5 $1 $14) 20. Nf1 $2 ({Only move:} 20. Nxc4 $18 dxc4 21. g4) 20... Nd6 (20... c5 $1 $11) 21. Ne3 Nde4 (21... Rc8 $16) 22. f3 $18 Nd6 $2 (22... c5) 23. Ng4 {[#] Threatening mate with Nxf6+.} Nde4 24. fxe4 Nxg4 25. e5 $40 {[%mdl 128] White attacks with force.} f5 26. Ng6 {[%csl LRe7,LRf8]} Qf7 27. Rh4 Rc8 $2 (27... Qd7 {was worth a try.} 28. Rxg4 (28. Nxf8 Kxf8 29. Rxg4 fxg4 $18) 28... fxg4 29. Nxf8 Kxf8) 28. Rxg4 Rfe8 29. Rh4 c5 30. Rd1 b6 31. g4 cxd4 32. Rxd4 Rc4 33. gxf5 exf5 34. Qxf5 Qxf5 35. Bxf5 Rxd4 36. cxd4 Bc6 37. Rh3 {White wants to mate with Rc3.} Bb5 38. Rc3 Bc4 39. b3 Be2 40. Bd7 Rd8 41. e6 {[%cal Be5e6,Be6e7][%mdl 32]} Bxh5 42. e7 {Weighted Error Value: White=0.19 (very precise) /Black=0.55.  Mistake:       	White=3     	Black=8      Inaccurate:     	White=2     	Black=2      OK:         	White=10    	Black=6      Best:        	White=3     	Black=1} 1-0

[Event "45th FIDE Olympiad 2024"]
[Site "Budapest"]
[Date "2024.09.11"]
[Round "1.187"]
[White "Mahor Jr, Manuel"]
[Black "Lopez Silva, Hugo"]
[Result "0-1"]
[ECO "D00"]
[WhiteElo "1759"]
[BlackElo "2379"]
[Annotator "TA"]
[PlyCount "64"]
[EventDate "2024.09.05"]
[EventType "team-tourn"]
[EventCountry "HUN"]
[SourceTitle "playchess.com"]
[Source "ChessBase"]
[SourceQuality "1"]
[WhiteTeam "Palau"]
[BlackTeam "Chile"]
[WhiteTeamCountry "PAL"]
[BlackTeamCountry "CHI"]
[TimeControl "40/5400+30:1800+30"]

{[%evp 11,64,-15,6,16,26,-35,0,-18,-1,-28,-26,-21,-16,-52,-52,-69,-66,-105,-71,-118,-94,-283,-295,-279,-234,-236,-231,-231,-221,-321,-311,-320,-293,-410,-405,-492,-470,-516,-520,-521,-359,-766,-767,-844,-848,-916,-944,-1249,-1275,-1258,-1107,-29977,-29978,-6229,-3597]} 1. d4 Nf6 2. Nf3 g6 3. Nc3 d5 4. Bf4 Bg7 5. Qd2 O-O 6. Bh6 c5 7. Bxg7 Kxg7 8. O-O-O (8. dxc5 $11 Nc6 9. e3) 8... cxd4 9. Nxd4 {[%cal Oe2e4] The position is equal.} Nc6 10. e3 e5 11. Nb3 Be6 12. h4 {[%cal Oh4h5]} h5 13. Be2 Qe7 14. f3 {[%cal Og2g4]} Rad8 15. g4 d4 16. Ne4 {[#]} (16. exd4 $17 exd4 17. g5 dxc3 18. Qxc3) 16... Nxe4 $19 ({Much less strong is} 16... hxg4 17. Nxf6 gxf3 (17... Kxf6 18. fxg4 d3 19. Bxd3 $11) 18. Bxf3 dxe3 (18... Kxf6 19. Bxc6 bxc6 20. exd4 $15) (18... Qxf6 19. Rdf1 $17) 19. Nh5+ gxh5 20. Qxe3 Rxd1+ 21. Bxd1 $19) 17. fxe4 dxe3 ({Don't do} 17... Bxg4 18. Rdg1 $19) 18. Qxe3 Rxd1+ 19. Bxd1 hxg4 20. Qg3 (20. h5 {might work better.} Rh8 21. h6+ Kh7 22. Kb1) 20... f5 21. exf5 gxf5 22. Qc3 Qb4 23. Qe3 Qf4 {Active counter play!} 24. Qxf4 exf4 25. Nc5 Bc8 26. c3 $2 {[#]} (26. Nd3) 26... Ne5 27. Re1 Kf6 {Strongly threatening ...b6.} 28. Kc2 b6 29. Nd3 Nxd3 30. Kxd3 Rd8+ 31. Ke2 Ba6+ 32. Kf2 Rd2+ {White got outplayed after the opening.   Weighted Error Value: White=1.08/Black=0.15 (very precise) .  Loses game:     	White=1     	---        Mistake:       	White=4     	---        Inaccurate:     	White=4     	Black=3      OK:         	White=2     	Black=11} 0-1